Cogmind - Beta 16 @@@ ROGUE MODE // 2025.11.14 @ 17:17:34 Player: guru-sr Result: Destroyed by D-53 Grenadier with Mini Grenade Launcher Performance ------------- Evolutions (0) 0 Regions Visited (2) 400 Robots Destroyed (26) 130 Value Destroyed (444) 444 Prototype IDs (4) 80 Alien Tech Used (0) 0 Bonus (0) 0 TOTAL SCORE: 1054 Bonus ------- None Cogmind --------- Core Integrity 0/250 Matter 299/300 Energy 250/250 System Corruption 14% Temperature Cool (0) Movement Rolling (175) Ox5 Location -10/Mines Parts ------- > --- POWER (1) -------- Ion Engine > --- PROPULSION (2) --- Light Treads Compact Wheel > --- UTILITY (2) ------ Huge Storage Unit Structural Scanner (fused) > --- WEAPON (2) ------- Small Laser Light Assault Rifle > --- INVENTORY (25) --- Ion Engine Light Treads Light Treads Light Treads Improved Heat Sink High-capacity Battery (250) Structural Scanner Structural Scanner Sensor Array Signal Interpreter Improved Terrain Scanner Seismic Detector Transport Network Coupler ECM Suite Propulsion Shielding Utility Shielding Utility Shielding Utility Shielding Utility Shielding Hacking Suite Light Assault Rifle Grenade Launcher Grenade Launcher Datajack Mining Laser Peak State ------------ > --- POWER ------------ Ion Engine > --- PROPULSION ------- Light Treads Wheel > --- UTILITY ---------- Small Storage Unit Improved Terrain Scanner > --- WEAPON ----------- Medium Laser Assault Rifle > --- INVENTORY -------- Light Ion Engine Light Treads Compact Wheel Improved Heat Sink High-capacity Battery Seismic Detector Small Laser Mining Laser [Rating: 10] Favorites ----------- Power Ion Engine Engine Ion Engine Propulsion Light Treads Treads Light Treads Wheel Compact Wheel Utility Huge Storage Unit Device Structural Scanner Storage Huge Storage Unit Weapon Assault Rifle Energy Gun Medium Laser Ballistic Gun Assault Rifle Special Weapon Mining Laser Build | -11 -10 -10 ------- Run | Yrd Mat Min Slots Evolved . | . . . Power . | . . . Propulsion . | . . . Utility . | . . . Weapon . | . . . Parts Attached 18 | 7 11 . Power 1 | 1 . . Engine 1 | 1 . . Core . | . . . Reactor . | . . . Propulsion 7 | 2 5 . Treads 4 | 1 3 . Leg . | . . . Wheel 3 | 1 2 . Hover . | . . . Flight . | . . . Utility 5 | 2 3 . Device 3 | 1 2 . Storage 2 | 1 1 . Processor . | . . . Hackware . | . . . Protection . | . . . Artifact . | . . . Weapon 5 | 2 3 . Energy Gun 2 | 1 1 . Energy Cannon . | . . . Ballistic Gun 2 | 1 1 . Ballistic Cannon . | . . . Launcher . | . . . Special Weapon 1 | . 1 . Impact Weapon . | . . . Slashing Weapon . | . . . Piercing Weapon . | . . . Special Melee Weapon . | . . . Unidentified Prototypes . | . . . Parts Lost 3 | . 3 . Power . | . . . Propulsion 1 | . 1 . Utility 1 | . 1 . Weapon 1 | . 1 . Highest Loss Streak 3 | . 3 . To Critical Strikes . | . . . Average Backups 19 | 3 19 25 Power . | . 1 1 Propulsion 3 | 2 3 3 Utility 10 | . 11 16 Weapon 3 | 1 3 4 Tool/Special . | . . . Unused Backups 26 | . 5 21 Power 2 | . 1 1 Propulsion 2 | . . 2 Utility 16 | . 2 14 Weapon 5 | . 2 3 Tool/Special 1 | . . 1 Average Slot Usage (%) 99 | . 99 100 Engine 14 | . 14 14 Treads 14 | . 14 14 Wheel 13 | . 13 14 Device 13 | . 13 14 Storage 14 | . 14 14 Energy Gun 10 | . 9 14 Ballistic Gun 15 | . 15 14 Special Weapon 2 | . 2 . Peak Build Rating 10 | 9 10 10 Average Rating 9 | 5 9 10 On Entrance 6 | . 9 10 Avg Prop Armor Cover (%) 12 | 12 12 14 Naked Turns . | . . . Heaviest Build 90 | 15 90 88 Greatest Support 16 | 10 16 16 Greatest Overweight (x) 8 | 4 8 5 Average Overweight (x) 4 | 1 4 5 Largest Inventory Capacity 25 | 8 25 25 Average Capacity 21 | 7 21 25 Most Carried 25 | 6 25 25 Average Carried 19 | 4 19 25 Final Capacity 25 | 8 25 25 Final Carried 25 | 6 25 25 Class Distribution -------------------- 100% | Mutant Dominant Class ---------------- Mutant | -10/Materials Mutant | -10/Mines Resources | -11 -10 -10 ----------- Run | Yrd Mat Min Matter Collected 884 | 285 495 104 Remotely . | . . . Salvage Created 672 | 102 525 45 Parts 59 | 10 46 3 Haulers Intercepted 2 | . 2 . Recyclers Shooed . | . . . Parts Field Recycled . | . . . Retrieved Matter . | . . . Parts Self-Destructed . | . . . Prevented . | . . . Parts Restored . | . . . Kills | -11 -10 -10 ------- Run | Yrd Mat Min Combat Hostiles Destroyed 16 | . 13 3 Guns 15 | . 12 3 Cannons 1 | . 1 . Classes Destroyed 8 | 2 6 . Builder 1 | . 1 . Tunneler 2 | 2 . . Hauler 2 | . 2 . Recycler 1 | 1 . . Operator 2 | . 2 . Watcher 2 | . 2 . Swarmer 9 | . 6 3 Grunt 7 | . 7 . Best Kill Streak 3 | 3 3 3 Combat Bots Only 3 | . 3 3 Max Kills in Single Turn 2 | 1 2 1 Gunslinging 1 | . 1 . Exploded . | . . . Melee . | . . . Uniques/NPCs Destroyed . | . . . Combat | -11 -10 -10 -------- Run | Yrd Mat Min Hostile Shots Fired 63 | . 53 10 Missed 17 | . 15 2 Hits 46 | . 38 8 Projectile 46 | . 38 8 AOE 2 | . . 2 Damage Taken 935 | . 806 129 Core 261 | . 224 37 Absorbed by Shields . | . . . Core Remaining (%) 100 | 100 . . Volleys Fired 100 | 5 88 7 Largest 2 | 2 2 2 Hottest 120 | 70 120 60 Shots Fired 167 | 10 142 15 Gun 139 | 10 114 15 Cannon . | . . . Launcher . | . . . Special 28 | . 28 . Kinetic 72 | 5 59 8 Thermal 95 | 5 83 7 Explosive . | . . . Electromagnetic . | . . . Robot Hit Streak 14 | 5 14 2 Robot Miss Streak 3 | 2 3 3 Penetration Max . | . . . Secondary Targets 1 | . 1 . Max Gunslinging Chain 1 | . 1 . Shots Hit Robots 97 | 6 86 5 Core Hits 40 | 4 32 4 Critical Kills . | . . . Critical Parts Destroyed . | . . . Critical Strikes 3 | . 3 . Burn 3 | . 3 . Melee Attacks . | . . . Impact . | . . . Slashing . | . . . Piercing . | . . . Sneak Attacks . | . . . Combat Hostiles . | . . . Follow-up Attacks . | . . . Damage Inflicted 1229 | 73 1113 43 Guns 1203 | 73 1087 43 Cannons . | . . . Explosions . | . . . Melee . | . . . Ramming . | . . . Kinetic 601 | 37 544 20 Thermal 628 | 36 569 23 Explosive . | . . . Electromagnetic . | . . . Impact . | . . . Slashing . | . . . Piercing . | . . . Highest Corruption 14 | . 14 14 Average Corruption 14 | . 14 14 Corruption Purged . | . . . Corruption Blocked . | . . . Effects 23 | . 17 6 Message Errors 8 | . 5 3 Matter Fused 4 | . 2 2 Heat Flow Errors 1 | . 1 . Energy Discharges 6 | . 6 . Parts Fused 1 | . 1 . Data Loss (major) 1 | . 1 . Misfires 1 | . . 1 Misdirections 1 | . 1 . Overload Shots . | . . . Overflow Damage . | . . . Projectiles . | . . . Explosions . | . . . Melee . | . . . Knockbacks . | . . . Impact . | . . . Kinetic . | . . . Secondary . | . . . Self-Inflicted Damage . | . . . Shots . | . . . Rammed . | . . . Targets Rammed . | . . . Kicked . | . . . Crushed . | . . . Highest Temperature 200 | 27 200 40 Average Temperature 29 | 12 30 20 Received Heat Transfer 156 | . 156 . Siege Activations . | . . . Martial Activations . | . . . Shielding Activations . | . . . Robots Disrupted . | . . . Combat Hostiles . | . . . Robots Corrupted . | . . . Combat Hostiles . | . . . Parts Fried . | . . . Impact Corruptions . | . . . Robots Melted . | . . . Combat Hostiles . | . . . Parts Melted 4 | . 4 . Heat Transferred 1963 | 111 1802 50 Parts Sabotaged . | . . . Parts Stolen . | . . . Parts Stripped . | . . . Power Chain Reactions . | . . . Alert | -11 -10 -10 ------- Run | Yrd Mat Min Maximum Alert Level . | . . . Low Security (%) 100 | 100 100 100 Level 1 . | . . . Level 2 . | . . . Level 3 . | . . . Level 4 . | . . . Level 5 . | . . . High Security . | . . . Max Security . | . . . Peak Influence 157 | 10 157 60 Initial . | . . . Average 50 | 2 56 22 Influence Increases 615 | 15 530 70 Destroy 0b10 Robot/C 320 | . 260 60 Destroy 0b10 Robot/NC 50 | 15 35 . Destroy Leader 68 | . 58 10 Successful Hack 78 | . 78 . Select Force Hacks 60 | . 60 . Disable Machine 15 | . 15 . Destroy Structure 24 | . 24 . Influence Decreases 615 | 15 528 72 Entered New Map 2 | . . 2 Time Decay 612 | 15 527 70 Lost Part 1 | . 1 . Squads Dispatched 4 | . 4 . Investigation 3 | . 3 . Extermination . | . . . Reinforcement 1 | . 1 . Assault . | . . . Garrison . | . . . Intercept . | . . . Searches Triggered . | . . . Construction Impeded . | . . . Haulers Reinforced . | . . . Active Scanning Responses . | . . . Cargo Convoy Interrupts . | . . . Stealth | -11 -10 -10 --------- Run | Yrd Mat Min Distress Signals 1 | . 1 . Communications Jammed . | . . . Distress Signals . | . . . Times Spotted 37 | . 27 10 Peak Tracking Total 10 | . 4 10 Tactical Retreats . | . . . Traps | -11 -10 -10 ------- Run | Yrd Mat Min Traps Triggered 2 | . 2 . Indirectly . | . . . Trap Hack Attempts . | . . . Triggered . | . . . Disarmed . | . . . Reprogrammed . | . . . Reused . | . . . Traps Extracted . | . . . Installed . | . . . Triggered . | . . . Machines | -11 -10 -10 ---------- Run | Yrd Mat Min Machines Disabled 2 | . 2 . Max in Single Turn 1 | . 1 . Machines Repaired . | . . . Machines Dismantled . | . . . Machines Sabotaged . | . . . Overloaded Fab Kills . | . . . Hacking | -11 -10 -10 --------- Run | Yrd Mat Min Machines Accessed 9 | . 9 . Terminals 7 | . 7 . Fabricators . | . . . Repair Stations . | . . . Recycling Units 2 | . 2 . Scanalyzers . | . . . Garrison Access . | . . . Total Hacks 29 | . 29 . Successful 20 | . 20 . Failed 8 | . 8 . Catastrophic 1 | . 1 . Database Lockouts 1 | . 1 . Manual 20 | . 20 . Terminals 25 | . 25 . Fabricators . | . . . Repair Stations . | . . . Recycling Units 4 | . 4 . Scanalyzers . | . . . Garrison Access . | . . . Terminal Hacks 14 | . 14 . Part Schematic 1 | . 1 . Robot Analysis 4 | . 4 . Prototype ID Bank 2 | . 2 . Branch Access Points 1 | . 1 . Terminal Index 1 | . 1 . Locate Traps 3 | . 3 . Zone Layout 2 | . 2 . Fabricator Hacks . | . . . Repair Station Hacks . | . . . Recycling Unit Hacks 1 | . 1 . Report Inventory 1 | . 1 . Scanalyzer . | . . . Garrison Access Hacks . | . . . Unauthorized Hacks 5 | . 5 . Terminals 3 | . 3 . Botnet 2 | . 2 . Operators 1 | . 1 . Fabricators . | . . . Repair Stations . | . . . Recycling Units 2 | . 2 . Tunnel 2 | . 2 . Scanalyzers . | . . . Garrison Access . | . . . Data Cores Recovered . | . . . Used . | . . . Hacking Detections 8 | . 8 . Full Trace Events 1 | . 1 . Feedback Events . | . . . Feedback Blocked . | . . . Robot Schematics Acquired . | . . . Robots Built . | . . . Authchips . | . . . Time . | . . . Total Robot Build Rating . | . . . Part Schematics Acquired 1 | . 1 . Parts Built . | . . . Authchips . | . . . Time . | . . . Total Part Build Rating . | . . . Part Studies Acquired . | . . . Parts Repaired . | . . . Time . | . . . Parts Recycled . | . . . Recycled Matter . | . . . Retrieved Matter . | . . . Retrieved Components . | . . . Parts Scanalyzed . | . . . Part Schematics Acquired . | . . . Parts Damaged . | . . . Bothacking | -11 -10 -10 ------------ Run | Yrd Mat Min Used RIF Installer . | . . . Robots Hacked . | . . . Non-combat . | . . . Combat . | . . . Robot Hacks Applied . | . . . Relay Couplers Released . | . . . Fabnet Peak Effective % . | . . . Robots Rewired . | . . . Allies Hacked . | . . . Hacks Repelled . | . . . Allies | -11 -10 -10 -------- Run | Yrd Mat Min Total Allies . | . . . Largest Group . | . . . Highest-Rated Group . | . . . Highest-Rated Ally . | . . . Total Orders . | . . . Ally Attacks . | . . . Total Damage . | . . . Kills . | . . . Allies Corrupted . | . . . Allies Melted . | . . . Intel | -11 -10 -10 ------- Run | Yrd Mat Min Active Infowar (turns) 2202 | 45 1966 191 Terrain 469 | 45 424 . Structural 1733 | . 1542 191 Robot Analysis Total 4 | . 4 . Derelict Logs Recovered 1 | . . 1 Drone Launches . | . . . Drone Recoveries . | . . . Exploration | -11 -10 -10 ------------- Run | Yrd Mat Min Turns Passed 2286 | 113 1982 191 Spaces Moved 1096 | 66 934 96 Core 22 | 22 . . Treads . | . . . Legs . | . . . Wheels 1074 | 44 934 96 Hover . | . . . Flight . | . . . Fastest Speed 50 | 50 95 175 Average Speed 158 | 114 159 175 Slowest Speed 250 | 250 200 175 Overloaded Moves . | . . . Propulsion Burnouts . | . . . Robots Hopped . | . . . Potential Cave-ins . | . . . Cave-ins Triggered 1 | . 1 . Exploration Rate (%) 45 | 5 91 39 Regions Visited 2 Branch Regions 1 Pre-discovered Areas 2 | . 2 . Known Exits Taken 1 | . 1 . Unknown Exits Taken 1 | 1 . . Scrap Searched 1 | . . 1 Spaces Dug 24 | . 24 . Terrain Destroyed 25 | . 25 . Melee . | . . . Projectile 25 | . 25 . AOE . | . . . Terrain Rammed . | . . . Walls Destroyed . | . . . Machines Disabled . | . . . Actions | -11 -10 -10 --------- Run | Yrd Mat Min Total 1417 | 91 1219 107 Wait 128 | 6 118 4 Move 1094 | 65 933 96 Hop . | . . . Pick Up 37 | 8 29 . Fast Attach 5 | 5 . . Attach 5 | 2 3 . Detach . | . . . Swap 38 | . 38 . Drop 10 | . 10 . Fire 100 | 5 88 7 Melee . | . . . Ram . | . . . Kick . | . . . Crush . | . . . Escape Stasis . | . . . Rewire . | . . . Trap . | . . . Miscellaneous . | . . . Route ------- -11/Scrapyard -10/Materials (discovered 4 exits: [*Mat x3] / *Min) -10/Mines History --------- Turn | Location | Event 19 | -11/Scrapyard | Discovered new exit (range 14) 114 | -11/Scrapyard | Entered Materials 195 | -10/Materials | Discovered new exit (range 16) 209 | -10/Materials | Identified exit to Mines 300 | -10/Materials | Build established: Mutant 673 | -10/Materials | Discovered new exit (range 4) 920 | -10/Materials | Core integrity fell below 50% 1188 | -10/Materials | Discovered new exit (range 8) 1689 | -10/Materials | Crushed by falling debris 1689 | -10/Materials | Core integrity fell below 20% 1689 | -10/Materials | System corruption reached 10% 1707 | -10/Materials | Central database locked down 1719 | -10/Materials | Discovered new exit (range 15) 1720 | -10/Materials | Lost 3 parts (1n1u1w) 2096 | -10/Materials | Entered Mines 2103 | -10/Mines | Learned Materials terminal intel 2280 | -10/Mines | Assembled infested the area 2285 | -10/Mines | Assisted by a Guerilla fighting off Assembled 2287 | -10/Mines | Destroyed by D-53 Grenadier with Mini Grenade Launcher Last Messages --------------- 02257_ K-01 Serf collects debris. 02278_ 5QU|QPCKX=SZB:ANDIT:Z=OAYT7FGEWSQSU 02279_ K-01 Serf collects debris. 02280_ ALERT: Infestation in the mines, dispatching Demolisher response squad. 02283_ EM-QPV(h): "I'll hold them off! Go on ahead or try to find another way!" 02283_ HV Slug penetrates C-45 Heavy ARC. 02283_ C-45 Heavy ARC suffers critical hit (Destroy). 02283_ HV Slug penetrates Wall. 02284_ C-45 Heavy ARC bursts open, deploying its payload. 02284_ D-53 Grenadier unfolds itself. 02285_ A derelict emerges from the shadows: "You need to get out of here! I've been tracking a group of Assembled to figure out where they're coming from, and they're closing on this area, come on!" 02286_ The unstable cave ceiling collapses. Map ----- +----------------------------------------------------+ | ???????????????????????????????????????????????## | | ???????????????????????????????????????????????## | | ??????????????????????????????????????????????### | | ?????????????????????????????????????????????#### | | ????????????????????????????????????????????#### | | ???????????????????????????????????????????#### | | ???????????????????????????????????????????### | | ??????????????????????????????????????????### | | ????????????????????????????? ???????????### | | ????????????????????????????? ???????????## | | ???????????????????????????## ???????###?## # | | ???????????????????????????## ??????? ###### / ## | | ???????????????????????????## ??????? #######/## | | ???????????????????????????## ??????? #######=## | | ???????????????????????????## ####?? ###??##%! | | ????????????????????????????? ##### ###?##### | | ????????????????????????????? ### ######### | | ?????????????????####???????? ###???## | | ????????????????######??????? #?#### | | ?????????? ?????### ###????? ##### | | ????????? ???### ####???## ? ### | | ????????? #### ######## k ## " | | ????????? a a ## ###### #### " | | ???????? a ### ############# " | | ????????? a ######?########## | | ????????????## @ ######?????????## | | ???????????### h # ###???????????#### | | ??????????### ## ##?????########## | | ?????????### # ##?????########## | | ?????????## # ##?????## | | ?????????## ##### ##?????## ####### | | ?????????## #### ###?????## ####### | | ?????????## d #### ########## ##????? | | ?????????## d ## #### ########## ##????? | | ?????????## " #### ??## #### ##????? | | ?????????## %"##### ??## ### #########??? | | ?????????## ????## ???### """ ## ######## | | ?????????##%?????## ???#### """ | | ?????????????????## ????#### """ | | ?????????????????## ?????### ######### | | ?????????????????## ????### ########## ?? | | ????????????????????????## ####????????????? | | ????????????????????????## ###?????????????? | | ???????????????????????### ###??????????????? | | ???????????????????????## ####??????????????? | | ??????????????????????? ###????????????????? | | ?????????????????????? #####?????????????????? | | ??????????????????????? #####??????????????????? | | ??????????????????????? ###?????????????????????? | | ????????????????????????###??????????????????????? | +----------------------------------------------------+ Best States ------------- Heat Dissipation 25 Energy Generation 10 Energy Capacity 250 Matter Stores 300 Matter Capacity 300 Sight Range 16 Terrain Scan Range 16 Terrain Scan Density 10 Evasion (%) 41 Item Schematics ----------------- Lrg. Storage Unit | -10/Materials | Hacked Robot Schematics ------------------ None Fabricated ------------ Nothing Repaired ---------- Nothing Studied --------- None Alien Tech Used ----------------- None Achievements -------------- None Challenges ------------ None Game ------ Seed EncryptedArchitectMinigun Manual? 0 Play Time 00:33:00 Cumulative 14.8 hours Start 2025.11.14 @ 16:44:06 End 2025.11.14 @ 17:17:34 Sessions 1 Manual Loads 0 Difficulty Rogue Special Mode None Game No. 11 Rogue 11 Adventurer 0 Explorer 0 Win Type - Total 1 Types 1/0/0/0/0/0/0/0/0/0 Lore% 9 Gallery% 16 Achievement% 25 Wizard Run 0 Options --------- Layout 1 ASCII 0 Keyboard 0 Movement Mouse Keybinds 0 Fullscreen 1 Font 24/Smallcaps Map View 50x35 Zoom Use 0% Tactical HUD 1 Map Filters NONE Filters NONE Steam 1 RUN: 219bbee9-d306-4f32-816e-999d6523ea2f